Cogmind - Beta 9.6 @@@ ROGUE MODE // 2020.07.13 @ 21:30:47 Player: dhtilly Result: Destroyed by P-60 Hacker with Shock Rifle Performance ------------- Evolutions (3) 1500 Regions Visited (4) 800 Robots Destroyed (48) 240 Value Destroyed (1246) 1246 Prototype IDs (10) 200 Alien Tech Used (0) 0 Bonus (0) 0 TOTAL SCORE: 3986 Bonus ------- None Cogmind --------- Core Integrity 0/700 Matter 78/300 Energy 100/100 System Corruption 9% Temperature Cool (0) Movement Core (100) Ox1 Location -7/Factory Parts ------- > --- POWER (2) -------- (None) > --- PROPULSION (4) --- (None) > --- UTILITY (4) ------ Advanced Terrain Scan Processor > --- WEAPON (3) ------- Gauss Rifle > --- INVENTORY (4) ---- Improved Deuterium Engine Large Storage Unit Particle Charger Power Shielding Peak State ------------ > --- POWER ------------ Ion Engine Light Nuclear Core > --- PROPULSION ------- Cesium-ion Thruster Cesium-ion Thruster Cesium-ion Thruster Cesium-ion Thruster > --- UTILITY ---------- Medium Storage Unit Weight Redist. System Weight Redist. System > --- WEAPON ----------- Electrolaser Minigun > --- INVENTORY -------- Large Storage Unit Power Shielding Beam Rifle Electrolaser Minigun [Rating: 28] Favorites ----------- Power Ion Engine Engine Ion Engine Power Core Light Nuclear Core Propulsion Aluminum Leg Leg Aluminum Leg Hover Unit Cooled Airjet Flight Unit Cesium-ion Thruster Utility Medium Storage Unit Device Weight Redist. System Storage Medium Storage Unit Processor Salvage Targeting Computer Protection Medium Armor Plating Weapon Minigun Energy Gun Electrolaser Energy Cannon Particle Cannon Ballistic Gun Minigun Ballistic Cannon Improved Light Cannon Special Weapon Remote Datajack Build | -11 -10 -9 -8 -7 ------- Run | Scr Mat Mat Mat Fac Slots Evolved 6 | . . 2 2 2 Power 1 | . . . 1 . Propulsion 2 | . . 2 . . Utility 2 | . . . 1 1 Weapon 1 | . . . . 1 Parts Attached 79 | 6 8 28 5 32 Power 9 | 1 . 3 1 4 Engine 8 | 1 . 2 1 4 Core 1 | . . 1 . . Reactor . | . . . . . Propulsion 25 | 2 . 17 . 6 Treads . | . . . . . Leg 11 | 2 . 9 . . Wheel . | . . . . . Hover 1 | . . . . 1 Flight 13 | . . 8 . 5 Utility 18 | 1 6 2 2 7 Device 10 | . 1 1 2 6 Storage 3 | 1 2 . . . Processor 2 | . . 1 . 1 Hackware . | . . . . . Protection 3 | . 3 . . . Artifact . | . . . . . Weapon 27 | 2 2 6 2 15 Energy Gun 7 | 1 . 2 2 2 Energy Cannon 5 | . 1 . . 4 Ballistic Gun 11 | 1 . 3 . 7 Ballistic Cannon 2 | . 1 1 . . Launcher . | . . . . . Special Weapon 2 | . . . . 2 Impact Weapon . | . . . . . Slashing Weapon . | . . . . . Piercing Weapon . | . . . . . Special Melee Weapon . | . . . . . Unidentified Prototypes 1 | . . . . 1 Parts Lost 25 | . 1 1 5 18 Power 4 | . . . 1 3 Propulsion 8 | . . 1 1 6 Utility 4 | . . . 1 3 Weapon 9 | . 1 . 2 6 Highest Loss Streak 14 | . 1 1 4 14 Average Slot Usage (%) 84 | . 98 96 88 43 Engine 10 | . 14 9 9 7 Core 1 | . . 1 6 . Leg 21 | . 28 33 . . Flight 8 | . . 7 33 12 Device 4 | . 1 2 13 9 Storage 10 | . 14 11 9 5 Processor 2 | . . 5 . . Protection 4 | . 10 2 . . Energy Gun 4 | . 5 6 6 . Energy Cannon 3 | . 8 . . 1 Ballistic Gun 7 | . 5 10 9 4 Ballistic Cannon 4 | . 8 4 . . Naked Turns . | . . . . . Heaviest Build 32 | 13 32 29 24 23 Greatest Support 49 | 20 20 49 30 24 Greatest Overweight (x) 3 | . 1 3 . 3 Average Overweight (x) . | . . . . . Largest Inventory Capacity 14 | 6 14 8 8 8 Average Capacity 7 | 5 7 8 8 7 Most Carried 8 | 2 8 8 8 8 Average Carried 6 | 1 6 7 7 6 Final Capacity 8 | 6 8 8 8 4 Final Carried 8 | 2 8 8 8 4 Class Distribution -------------------- 62% | Mutant 21% | Scavenger-Mutant 16% | Sprinter Dominant Class ---------------- Mutant | -10/Materials Scavenger-Mutant | -9/Materials Sprinter | -8/Materials Mutant | -7/Factory Resources | -11 -10 -9 -8 -7 ----------- Run | Scr Mat Mat Mat Fac Matter Collected 1331 | 260 173 580 . 318 Remotely . | . . . . . Salvage Created 1635 | . 328 750 97 460 Parts 108 | . 17 52 8 31 Haulers Intercepted 3 | . . 1 1 1 Recyclers Shooed . | . . . . . Parts Field Recycled . | . . . . . Retrieved Matter . | . . . . . Parts Self-Destructed . | . . . . . Prevented . | . . . . . Kills | -11 -10 -9 -8 -7 ------- Run | Scr Mat Mat Mat Fac Combat Hostiles Destroyed 29 | . 9 14 . 6 Guns 22 | . 6 13 . 3 Cannons 5 | . 3 1 . 1 AOE 2 | . . . . 2 Classes Destroyed 11 | . 3 6 . 2 Worker 3 | . . 2 . 1 Builder 3 | . . 1 . 2 Tunneler 1 | . . . . 1 Hauler 3 | . . 1 1 1 Recycler 2 | . . 1 . 1 Mechanic 1 | . . . . 1 Watcher 6 | . 2 2 1 1 Swarmer 7 | . 3 . . 4 Grunt 16 | . 6 10 . . Duelist 1 | . . 1 . . Sentry 5 | . . 3 . 2 Best Kill Streak 4 | . 4 4 1 4 Combat Bots Only 4 | . 4 4 . 3 Max Kills in Single Turn 3 | . 2 2 1 3 Gunslinging 1 | . 1 . . . Exploded 2 | . . . . 2 Melee . | . . . . . Uniques/NPCs Destroyed . | . . . . . Combat | -11 -10 -9 -8 -7 -------- Run | Scr Mat Mat Mat Fac Damage Taken 3408 | . 251 813 411 1933 Core 930 | . 19 121 81 709 Absorbed by Shields 16 | . . . . 16 Core Remaining (%) 86 | 100 92 69 85 . Volleys Fired 157 | . 30 66 11 50 Largest 2 | . 2 2 2 2 Hottest 107 | . 107 107 88 60 Shots Fired 263 | . 57 127 17 62 Gun 184 | . 39 86 17 42 Cannon 75 | . 18 41 . 16 Launcher . | . . . . . Special 4 | . . . . 4 Kinetic 171 | . 30 88 11 42 Thermal 88 | . 27 39 6 16 Explosive . | . . . . . Electromagnetic . | . . . . . Robot Hit Streak 12 | . 11 12 5 6 Robot Miss Streak 8 | . 8 5 1 4 Penetration Max . | . . . . . Secondary Targets 4 | . 2 2 . . Max Gunslinging Chain 1 | . 1 1 . . Shots Hit Robots 158 | . 31 77 10 40 Core Hits 78 | . 16 31 5 26 Critical Hits . | . . . . . Critical Kills . | . . . . . Critical Parts Destroyed . | . . . . . Melee Attacks . | . . . . . Impact . | . . . . . Slashing . | . . . . . Piercing . | . . . . . Sneak Attacks . | . . . . . Combat Hostiles . | . . . . . Follow-up Attacks . | . . . . . Damage Inflicted 3260 | . 669 1302 209 1080 Guns 1796 | . 240 866 209 481 Cannons 931 | . 247 436 . 248 Explosions 533 | . 182 . . 351 Melee . | . . . . . Ramming . | . . . . . Kinetic 1728 | . 187 935 125 481 Thermal 1532 | . 482 367 84 599 Explosive . | . . . . . Electromagnetic . | . . . . . Impact . | . . . . . Slashing . | . . . . . Piercing . | . . . . . Highest Corruption 9 | . . 1 . 9 Average Corruption 2 | . . 1 . 5 Corruption Purged . | . . . . . Effects 2 | . . . . 2 Message Errors 1 | . . . . 1 Energy Discharges 1 | . . . . 1 Overload Shots . | . . . . . Overflow Damage 110 | . 94 . . 16 Projectiles . | . . . . . Explosions 110 | . 94 . . 16 Melee . | . . . . . Knockbacks 5 | . 1 4 . . Impact . | . . . . . Kinetic 4 | . 1 3 . . Secondary 1 | . . 1 . . Self-Inflicted Damage 49 | . . . . 49 Shots 1 | . . . . 1 Rammed . | . . . . . Targets Rammed . | . . . . . Kicked . | . . . . . Crushed . | . . . . . Highest Temperature 251 | . 234 251 149 100 Average Temperature 69 | . 69 79 66 33 Received Heat Transfer 963 | . 81 348 108 426 Siege Activations . | . . . . . Robots Corrupted . | . . . . . Combat Hostiles . | . . . . . Parts Fried . | . . . . . Impact Corruptions . | . . . . . Robots Melted . | . . . . . Combat Hostiles . | . . . . . Parts Melted 4 | . 2 2 . . Heat Transferred 2459 | . 853 814 185 607 Parts Sabotaged . | . . . . . Parts Stolen . | . . . . . Parts Stripped . | . . . . . Power Chain Reactions . | . . . . . Missiles Intercepted . | . . . . . Alert | -11 -10 -9 -8 -7 ------- Run | Scr Mat Mat Mat Fac Peak Influence 296 | . 261 243 252 296 Average Influence 111 | . 84 115 166 140 Maximum Alert Level 1 | . 1 1 1 1 Low Security (%) 84 | 100 91 87 58 78 Level 1 15 | . 8 12 41 21 Level 2 . | . . . . . Level 3 . | . . . . . Level 4 . | . . . . . Level 5 . | . . . . . High Security . | . . . . . Max Security . | . . . . . Squads Dispatched 14 | . 2 3 3 6 Investigation 3 | . . . 1 2 Extermination 1 | . . . . 1 Reinforcement 7 | . 2 3 2 . Assault . | . . . . . Garrison 3 | . . . . 3 Intercept . | . . . . . Construction Impeded . | . . . . . Haulers Reinforced . | . . . . . Stealth | -11 -10 -9 -8 -7 --------- Run | Scr Mat Mat Mat Fac Distress Signals 6 | . . 2 2 2 Communications Jammed . | . . . . . Distress Signals . | . . . . . Times Spotted 102 | . 19 21 33 29 Peak Tracking Total 14 | . 5 5 14 9 Tactical Retreats 16 | . . 1 8 7 Traps | -11 -10 -9 -8 -7 ------- Run | Scr Mat Mat Mat Fac Traps Triggered 3 | . . 1 . 2 Indirectly . | . . . . . Trap Hack Attempts . | . . . . . Triggered . | . . . . . Disarmed . | . . . . . Reprogrammed . | . . . . . Reused . | . . . . . Traps Extracted . | . . . . . Installed . | . . . . . Triggered . | . . . . . Machines | -11 -10 -9 -8 -7 ---------- Run | Scr Mat Mat Mat Fac Machines Disabled 5 | . 3 . . 2 Max in Single Turn 3 | . 3 . . 2 Machines Sabotaged . | . . . . . Garrisons Compromised . | . . . . . Overloaded Fab Kills . | . . . . . Fab Network Shutdowns . | . . . . . Hacking | -11 -10 -9 -8 -7 --------- Run | Scr Mat Mat Mat Fac Machines Accessed 24 | . 6 5 4 9 Terminals 16 | . 5 4 4 3 Fabricators 2 | . . . . 2 Repair Stations 3 | . 1 . . 2 Recycling Units 1 | . . . . 1 Scanalyzers 1 | . . 1 . . Garrison Access 1 | . . . . 1 Total Hacks 77 | . 23 20 16 18 Successful 47 | . 19 13 6 9 Failed 30 | . 4 7 10 9 Catastrophic 1 | . 1 . . . Database Lockouts . | . . . . . Manual . | . . . . . Terminals 62 | . 21 18 16 7 Fabricators 2 | . . . . 2 Repair Stations 7 | . 2 . . 5 Recycling Units 2 | . . . . 2 Scanalyzers 2 | . . 2 . . Garrison Access 2 | . . . . 2 Terminal Hacks 38 | . 17 11 6 4 Record 5 | . 2 1 1 1 Prototype ID Bank 5 | . 2 2 . 1 Branch Access Points 2 | . 1 . 1 . Emergency Access Points 3 | . 1 . 1 1 Recycling Unit Index 1 | . . 1 . . Scanalyzer Index 1 | . . . 1 . Alert Level 2 | . . 2 . . Locate Traps 4 | . 3 . 1 . Dispatch Records 2 | . . 2 . . Transport Status 1 | . 1 . . . Investigation Status 1 | . . 1 . . Reinforcement Status 2 | . 2 . . . Recall Investigation 1 | . . 1 . . Recall Extermination 1 | . . . . 1 Recall Reinforcements 1 | . 1 . . . Hauler Manifests 1 | . 1 . . . Registered Components 2 | . 1 . 1 . Registered Prototypes 1 | . 1 . . . Zone Layout 2 | . 1 1 . . Fabricator Hacks 1 | . . . . 1 Build 1 | . . . . 1 Repair Station Hacks 4 | . 2 . . 2 Scan Component 2 | . 1 . . 1 Repair 2 | . 1 . . 1 Recycling Unit Hacks 1 | . . . . 1 Retrieve Components 1 | . . . . 1 Scanalyzer 2 | . . 2 . . Insert Component 1 | . . 1 . . Analyze 1 | . . 1 . . Garrison Access Hacks 1 | . . . . 1 Unlock Access 1 | . . . . 1 Unauthorized Hacks . | . . . . . Terminals . | . . . . . Fabricators . | . . . . . Repair Stations . | . . . . . Recycling Units . | . . . . . Scanalyzers . | . . . . . Garrison Access . | . . . . . Data Cores Recovered . | . . . . . Used . | . . . . . Hacking Detections 18 | . 4 4 4 6 Full Trace Events 5 | . 1 1 1 2 Feedback Events . | . . . . . Feedback Blocked . | . . . . . Robot Schematics Acquired . | . . . . . Robots Built . | . . . . . Matter . | . . . . . Time . | . . . . . Total Robot Build Rating . | . . . . . Part Schematics Acquired 1 | . . 1 . . Parts Built . | . . . . . Matter 168 | . . . . 168 Time 84 | . . . . 84 Total Part Build Rating . | . . . . . Parts Repaired 2 | . 1 . . 1 Time 51 | . 32 . . 19 Parts Recycled . | . . . . . Recycled Matter . | . . . . . Retrieved Matter . | . . . . . Retrieved Components . | . . . . . Parts Scanalyzed 1 | . . 1 . . Part Schematics Acquired 1 | . . 1 . . Parts Damaged . | . . . . . Bothacking | -11 -10 -9 -8 -7 ------------ Run | Scr Mat Mat Mat Fac Used RIF Installer . | . . . . . Robots Hacked 2 | . . . . 2 Non-combat . | . . . . . Combat 2 | . . . . 2 Robot Hacks Applied 2 | . . . . 2 parse_system 2 | . . . . 2 Relay Couplers Released . | . . . . . Robots Rewired . | . . . . . Allies Hacked . | . . . . . Hacks Repelled . | . . . . . Allies | -11 -10 -9 -8 -7 -------- Run | Scr Mat Mat Mat Fac Total Allies . | . . . . . Largest Group . | . . . . . Highest-Rated Group . | . . . . . Highest-Rated Ally . | . . . . . Total Orders . | . . . . . Ally Attacks . | . . . . . Total Damage . | . . . . . Kills . | . . . . . Allies Corrupted . | . . . . . Allies Melted . | . . . . . Intel | -11 -10 -9 -8 -7 ------- Run | Scr Mat Mat Mat Fac Robot Analysis Total . | . . . . . Derelict Logs Recovered . | . . . . . Drone Launches . | . . . . . Drone Recoveries . | . . . . . Exploration | -11 -10 -9 -8 -7 ------------- Run | Scr Mat Mat Mat Fac Turns Passed 2699 | 69 908 920 213 589 Spaces Moved 2597 | 54 547 628 547 821 Core 46 | 8 . 2 . 36 Treads . | . . . . . Legs 1021 | 46 547 428 . . Wheels . | . . . . . Hover . | . . . . . Flight 1530 | . . 198 547 785 Fastest Speed 31 | 50 120 31 31 32 Average Speed 76 | 109 139 93 31 48 Slowest Speed 290 | 120 150 290 34 200 Overloaded Moves . | . . . . . Propulsion Burnouts . | . . . . . Robots Hopped 11 | . . 2 6 3 Cave-ins Triggered . | . . . . . Exploration Rate (%) 40 | 4 77 45 53 23 Regions Visited 4 Branch Regions . Pre-discovered Areas . | . . . . . Known Exits Taken . | . . . . . Unknown Exits Taken 4 | 1 1 1 1 . Scrap Searched . | . . . . . Spaces Dug . | . . . . . Terrain Destroyed 28 | . 6 4 . 18 Melee . | . . . . . Projectile 4 | . . 4 . . AOE 24 | . 6 . . 18 Actions | -11 -10 -9 -8 -7 --------- Run | Scr Mat Mat Mat Fac Total 3060 | 61 633 843 566 957 Wait 144 | . 35 85 3 21 Move 2572 | 53 546 623 535 815 Hop 10 | . . 2 5 3 Pick Up 23 | 2 7 9 4 1 Fast Attach 49 | 6 5 18 1 19 Attach 19 | . 2 1 3 13 Detach 16 | . 3 2 1 10 Swap 11 | . 1 9 1 . Drop 43 | . 4 28 2 9 Fire 157 | . 30 66 11 50 Melee . | . . . . . Ram . | . . . . . Kick . | . . . . . Crush . | . . . . . Escape Stasis 16 | . . . . 16 Rewire . | . . . . . Trap . | . . . . . Miscellaneous . | . . . . . Route ------- -11/Scrapyard -10/Materials (discovered 4 exits: *Mat x2 / *Min x2) -9/Materials (discovered 2 exits: *Mat / [Min]) -8/Materials (discovered 2 exits: *Fac x2) -7/Factory (discovered 1 exit: Gar) History --------- Turn | Location | Event 38 | -11/Scrapyard | Discovered new exit (range 14) 70 | -11/Scrapyard | Entered Materials 93 | -10/Materials | Identified exit to Mines 313 | -10/Materials | Build established: Mutant 508 | -10/Materials | Repaired Med. Armor Plating 538 | -10/Materials | Discovered new exit (range 3) 749 | -10/Materials | Discovered new exit (range 8) 978 | -10/Materials | Entered another Materials area 978 | -9/Materials | Evolved 2 slots: Propulsion x2 1480 | -9/Materials | Build established: Scavenger-Mutant 1543 | -9/Materials | Discovered new exit (range 16) 1629 | -9/Materials | Discovered new exit (range 16) 1898 | -9/Materials | Entered another Materials area 1898 | -8/Materials | Evolved 2 slots: Power x1, Utility x1 1966 | -8/Materials | Discovered new exit (range 16) 2090 | -8/Materials | Discovered new exit (range 11) 2111 | -8/Materials | Entered Factory 2111 | -7/Factory | Evolved 2 slots: Utility x1, Weapon x1 2117 | -7/Factory | Lost 4 parts (1p1n2w) 2169 | -7/Factory | Repaired Cesium-ion Thruster 2377 | -7/Factory | Identified exit to Garrison 2431 | -7/Factory | Garrison activated, responded to threat 2476 | -7/Factory | Core integrity fell below 50% 2503 | -7/Factory | Lost 14 parts (2p4n3u5w) 2552 | -7/Factory | Core integrity fell below 20% 2700 | -7/Factory | Destroyed by P-60 Hacker with Shock Rifle Last Messages --------------- Connecting with Terminal... >>Recall(Extermination) Establishing remote squad link... Recalled extermination squad 6E3GIWRHNJ. Acquired Gatling Laser. Dropped Gatling Laser. Acquired Prototype Hover Unit. Identified Cld. Airjet. Malfunction: System corrupted (+5). Connecting with Terminal... >>Access(Emergency) Found 2 emergency access doors: (130,37) (134,37) Map updated. Acquired Adv. Terrain Scan Processor. Dropped Faulty Cld. Airjet. 39UWP2 IIM|VT7WDC NO Connecting with Recycling Unit... VTOL Module destroyed. Map ----- +----------------------------------------------------+ | ?????????????????????????????????????????????????? | | ?????????????????????????????????????????????????? | | ?????????????????????????????????????????????????? | | ?????????????????????????????????????????????????? | | ?????????????????????????????????????????????????? | | ?????????????????????????????????????????????????? | | ?????????????????????????????????????????????????? | | ?????????????????????????????????????????????????? | | ?????????????????????????????????????????????????? | | ?????????????????????????????????????????????????? | | ?????????????????#################???##??????????? | | ?????????????????# # ??? ??????????? | | ?????????????????# """ # "?" ""?????????? | | ?????????????????# "Y" # "?" """??#?????? | | ?????????????????# " " # """ """? #?????? | | ?????????????????# """ !# #?????? | | ?????????????????# """ # """ """ #?????? | | ?????????????????# """ # """ """ ####### | | ?????????????????# # """ """ # | | ?????????????????# """ """ # # | | ?????????????????# """ """ # # | | ?????????????????# """ """ # # | | ?????????????????# # # | | ???????????????# ############+#######+###### | | ???????????????# p #?# | | ???????????????# @ #?# | | ???????????????# ### | | ???????????????+ l / | | ???????????????# ### ! | | ???????????????# #?# | | ???????????????# #?# | | ???????????????########## #?# | | ????????????????????????# #?# | | ????????????????????????# #?# | | ????????################# #?# | | ????????# # #?# | | ????????# + #####+### | | ????????# #^ """"""" """"""" # T | | ????????# # """"""" """"""" # | | ???###########+#### """"""" ""????" # = | | ???# + #??# """"""" """???" # | | ???# # #??# # | | ???# # #??# """"""" """"""" # """" " | | ???# # #??# """"""" """"""" # """" " | | ???######+#### #??# """"""" """"""" # """" " | | ######### #??# #??# """"""" """"""" # """" " | | ## #??# #??# # """" " | | ! ## ##?# #??# "T" #[ """" | | "" """ # ### #### # | | "" """ + ! ######+## | +----------------------------------------------------+ Best States ------------- Heat Dissipation 35 Energy Generation 19 Energy Capacity 310 Matter Stores 300 Matter Capacity 300 Sight Range 16 Robot Scan Range 16 Terrain Scan Density 210 Additional Mass Support 6 Armor Coverage 225 Evasion (%) 63 Particle Charging 15 Salvage Targeting 1 Item Schematics ----------------- Imp. Medium Laser | -9/Materials | Scanalyzed Robot Schematics ------------------ None Fabricated ------------ Nothing Alien Tech Used ----------------- None Achievements -------------- GoHome() Challenges ------------ None Game ------ Seed HackingInsulatedPrototype Manual? 0 Play Time 01:10:49 Cumulative 6.2 hours Start 2020.07.13 @ 20:11:13 End 2020.07.13 @ 21:30:47 Sessions 1 Manual Loads 0 Difficulty Rogue Special Mode None Game No. 4 Rogue 4 Adventurer 0 Explorer 0 Win Type - Total 0 Types 0/0/0/0/0/0/0 Lore% 2 Gallery% 10 Achievement% 9 Wizard Run 0 Options --------- ASCII 0 Keyboard 1 Movement Vi Keybinds 0 Fullscreen 2 Font 12/Terminus Map View 83x54 Tactical HUD 0 Map Filters NONE Filters NONE Steam 1 RUN: fae41493-54a3-4c84-a12a-68e0d6881dec